bitfinex/quotes_BTCUSD_20240607
["timestamp","ask_amount","ask_price","bid_price","bid_amount"]
[1717773606363,0.550057,71249.0,71248.0,0.000946]
[1717773607988,0.558057,71249.0,71248.0,0.000946]
[1717773608169,0.552057,71249.0,71248.0,0.000946]
[1717773608572,0.561057,71249.0,71248.0,0.000946]
[1717773609174,0.702057,71249.0,71248.0,0.000946]
[1717773609417,0.704057,71249.0,71248.0,0.000946]
[1717773609829,0.715057,71249.0,71248.0,0.000946]
[1717773610041,0.705057,71249.0,71248.0,0.000946]
[1717773610629,0.717057,71249.0,71248.0,0.000946]
[1717773610828,0.694057,71249.0,71248.0,0.000946]
[1717773611038,0.7651548,71249.0,71248.0,0.000946]
[1717773611292,1.60127873,71249.0,71248.0,0.000946]
[1717773611446,1.83350769,71249.0,71248.0,0.000946]
[1717773611621,1.99370769,71249.0,71248.0,0.000946]
[1717773611823,2.733179,71249.0,71248.0,0.000946]
[1717773612559,2.46034504,71249.0,71248.0,0.000946]
[1717773612761,2.44934504,71249.0,71248.0,0.000946]
[1717773612938,2.03139948,71249.0,71248.0,0.000946]
[1717773613117,2.04752844,71249.0,71248.0,0.000946]
[1717773613324,2.06152844,71249.0,71248.0,0.000946]
[1717773613543,2.04952844,71249.0,71248.0,0.000946]
[1717773613952,2.33023344,71249.0,71248.0,0.000946]
[1717773614150,0.421099,71242.0,71241.0,0.004]
[1717773614437,0.83941793,71242.0,71241.0,0.004]
[1717773614567,1.00601793,71242.0,71241.0,0.004]
[1717773614984,1.01014689,71242.0,71241.0,0.004]
[1717773615186,1.00601793,71242.0,71241.0,0.004]
[1717773615391,1.42282624,71242.0,71241.0,0.004]
[1717773616006,1.4269552,71242.0,71241.0,0.004]
[1717773616842,1.42282624,71242.0,71241.0,0.004]
[1717773617463,1.43682624,71242.0,71241.0,0.004]
[1717773617669,1.45082624,71242.0,71241.0,0.004]
[1717773618586,1.4549552,71242.0,71241.0,0.004]
[1717773619103,1.45082624,71242.0,71241.0,0.004]
[1717773619307,1.4549552,71242.0,71241.0,0.004]
[1717773619671,1.5320552,71242.0,71241.0,0.004]
[1717773620470,1.8127882,71242.0,71241.0,0.004]
[1717773621607,1.7987882,71242.0,71241.0,0.004]
[1717773622687,1.7847882,71242.0,71241.0,0.004]
[1717773623104,1.7987882,71242.0,71241.0,0.004]
[1717773623310,1.80865924,71242.0,71241.0,0.004]
[1717773623511,1.8127882,71242.0,71241.0,0.004]
[1717773623716,1.80865924,71242.0,71241.0,0.004]
[1717773624348,1.8127882,71242.0,71241.0,0.004]
[1717773626428,1.85611592,71242.0,71241.0,0.004]
[1717773627237,1.84477679,71242.0,71241.0,0.004]
[1717773627618,1.85877679,71242.0,71241.0,0.004]
[1717773628502,1.85877679,71242.0,71194.0,0.20837919]
[1717773628503,0.1,71196.0,71194.0,0.20837919]
[1717773628733,0.1,71196.0,71192.0,0.018997]
[1717773628734,0.140463,71193.0,71192.0,0.161504]
[1717773628943,0.4,71207.0,71195.0,0.1581]
[1717773628944,0.1,71207.0,71195.0,0.1581]
[1717773629191,0.1,71207.0,71195.0,0.02]
[1717773629192,0.140437,71206.0,71195.0,0.02]
[1717773629408,0.14044,71205.0,71197.0,0.1581]
[1717773629863,0.1,71223.0,71197.0,0.1581]
[1717773629864,0.1,71200.0,71197.0,0.1581]
[1717773631505,0.140447,71201.0,71197.0,0.1581]
[1717773631727,0.1,71200.0,71198.0,0.09265109]
[1717773632187,0.240437,71207.0,71204.0,0.161]
[1717773632440,0.1,71213.0,71212.0,0.2349]
[1717773632441,0.240424,71213.0,71212.0,0.2349]
[1717773632672,0.68077,71233.0,71213.0,0.1532]
[1717773632673,0.1,71217.0,71213.0,0.1532]
[1717773632880,0.68077,71233.0,71216.0,0.1592]
[1717773632881,0.1,71219.0,71216.0,0.1592]
[1717773633330,0.1,71219.0,71217.0,0.01479128]
[1717773633770,0.1,71219.0,71216.0,0.1592]
[1717773633951,0.1,71219.0,71218.0,0.01484096]
[1717773634332,0.1,71219.0,71216.0,0.1592]
[1717773634539,0.1,71219.0,71217.0,0.01482772]
[1717773634717,0.1,71219.0,71216.0,0.1592]
[1717773634918,0.101,71219.0,71217.0,0.01482772]
[1717773635117,0.101,71219.0,71216.0,0.1632]
[1717773635437,0.101,71219.0,71218.0,0.02082374]
[1717773635643,0.101,71219.0,71218.0,0.006]
[1717773635799,0.102,71219.0,71218.0,0.02082374]
[1717773636313,0.242411,71219.0,71218.0,0.02082374]
[1717773636492,0.392411,71219.0,71218.0,0.02082374]
[1717773636696,0.492411,71219.0,71218.0,0.02082374]
[1717773637076,0.140415,71217.0,71216.0,0.1652]
[1717773637269,0.240415,71217.0,71216.0,0.1652]
[1717773637495,0.240415,71217.0,71216.0,0.18103232]
[1717773637702,0.240415,71217.0,71216.0,0.02183232]
[1717773638075,0.140423,71213.0,71212.0,0.000946]
[1717773638509,0.2201912,71213.0,71212.0,0.000946]
[1717773639370,0.59326644,71213.0,71212.0,0.000946]
[1717773639946,0.5210382,71213.0,71212.0,0.000946]
[1717773640259,0.6210382,71213.0,71212.0,0.000946]
[1717773640956,0.6210382,71213.0,71212.0,0.006946]
[1717773641317,0.6010382,71213.0,71212.0,0.003946]
[1717773641552,0.6010382,71213.0,71212.0,0.000946]
[1717773641955,0.6010382,71213.0,71212.0,0.002946]
[1717773641956,0.9288852,71213.0,71212.0,0.002946]
[1717773642363,0.9038852,71213.0,71212.0,0.002946]
[1717773642895,0.9801082,71213.0,71212.0,0.002946]
[1717773643302,0.9601082,71213.0,71212.0,0.002946]
[1717773644180,0.9601082,71213.0,71182.0,0.02]
[1717773644181,0.140482,71183.0,71182.0,0.02]
[1717773644438,0.140482,71183.0,71181.0,1e-06]
[1717773644439,0.640484,71182.0,71181.0,1e-06]
[1717773644646,0.11905793,71193.0,71181.0,0.164601]
[1717773644847,0.10411542,71200.0,71181.0,0.164601]
[1717773644848,0.22197087,71182.0,71181.0,0.164601]
[1717773644977,0.15,71182.0,71181.0,0.164601]
[1717773645182,0.1,71182.0,71176.0,0.009504]
[1717773645393,0.140494,71177.0,71176.0,0.009504]
[1717773645600,0.290494,71177.0,71176.0,0.009504]
[1717773646028,0.390494,71177.0,71176.0,0.009504]
[1717773648191,0.391494,71177.0,71176.0,0.009504]
[1717773648947,0.392494,71177.0,71176.0,0.009504]
[1717773649163,0.391494,71177.0,71176.0,0.009504]
[1717773649365,0.390494,71177.0,71176.0,0.009504]
[1717773649537,0.391494,71177.0,71176.0,0.009504]
[1717773651267,0.393494,71177.0,71176.0,0.009504]
[1717773651523,0.392494,71177.0,71176.0,0.009504]
[1717773651730,0.390494,71177.0,71176.0,0.009504]
[1717773651937,0.412494,71177.0,71176.0,0.009504]
[1717773652328,0.390494,71177.0,71176.0,0.009504]
[1717773652802,0.406494,71177.0,71176.0,0.009504]
[1717773653007,0.398494,71177.0,71176.0,0.009504]
[1717773653356,0.390494,71177.0,71176.0,0.009504]
[1717773654712,0.401494,71177.0,71176.0,0.009504]
[1717773655414,0.409494,71177.0,71176.0,0.009504]
[1717773655619,0.409494,71177.0,71176.0,0.0247236]
[1717773655821,0.401494,71177.0,71176.0,0.0247236]
[1717773656143,0.457743,71177.0,71176.0,0.0247236]
[1717773656361,0.468743,71177.0,71176.0,0.0247236]
[1717773656547,0.446743,71177.0,71176.0,0.009504]
[1717773656997,0.161,71177.0,71176.0,0.10757264]
[1717773657211,0.161,71177.0,71176.0,0.11709688]
[1717773657415,0.011,71177.0,71176.0,0.02486864]
[1717773658155,0.011,71177.0,71176.0,0.18928757]
[1717773658989,0.140478,71186.0,71177.0,0.02]
[1717773659225,0.15,71185.0,71178.0,0.16441893]
[1717773659496,0.15,71185.0,71179.0,0.02]
[1717773659875,0.15,71185.0,71180.0,0.01569019]
[1717773660519,0.15,71185.0,71178.0,0.14441893]
[1717773660726,0.15,71185.0,71176.0,0.009504]
[1717773660727,0.140489,71180.0,71176.0,0.009504]
[1717773662270,0.140494,71177.0,71176.0,0.009504]
[1717773662553,0.290494,71177.0,71176.0,0.009504]
[1717773663309,0.290494,71177.0,71176.0,0.007067]
[1717773663699,0.290494,71177.0,71176.0,0.008067]
[1717773664355,0.157,71177.0,71176.0,0.007067]
[1717773665745,0.297494,71177.0,71176.0,0.007067]
[1717773666487,0.304494,71177.0,71176.0,0.007067]
[1717773667113,1.13089093,71177.0,71176.0,0.007067]
[1717773667904,1.12389093,71177.0,71176.0,0.007067]
[1717773668575,1.13089093,71177.0,71176.0,0.007067]
[1717773668774,1.20311917,71177.0,71176.0,0.007067]
[1717773669590,1.2011732,71177.0,71176.0,0.007067]
[1717773669737,1.4011732,71177.0,71176.0,0.007067]
[1717773670336,1.58740144,71177.0,71176.0,0.007067]
[1717773670544,1.86839044,71177.0,71176.0,0.007067]
[1717773670741,1.85439044,71177.0,71176.0,0.007067]
[1717773670941,1.84039044,71177.0,71176.0,0.007067]
[1717773671141,1.425422,71172.0,71171.0,0.004]
[1717773671391,1.92833469,71172.0,71171.0,0.004]
[1717773671594,2.28304369,71172.0,71171.0,0.004]
[1717773672189,0.841572,71162.0,71161.0,0.004]
[1717773672387,1.08599093,71162.0,71161.0,0.004]
[1717773672624,1.12330242,71162.0,71161.0,0.004]
[1717773672994,1.84453893,71162.0,71161.0,0.004]
[1717773673191,0.140544,71152.0,71151.0,0.004]
[1717773673395,0.240544,71152.0,71151.0,0.004]
[1717773673979,0.58287314,71152.0,71151.0,0.004]
[1717773674628,0.61087314,71152.0,71151.0,0.004]
[1717773674837,0.57687314,71152.0,71151.0,0.004]
[1717773675034,0.56287314,71152.0,71151.0,0.004]
[1717773675257,0.57687314,71152.0,71151.0,0.004]
[1717773675482,0.61087314,71152.0,71151.0,0.004]
[1717773675925,0.59087314,71152.0,71151.0,0.004]
[1717773676578,0.73529207,71152.0,71151.0,0.004]
[1717773676802,0.59087314,71152.0,71151.0,0.004]
[1717773677649,0.549632,71152.0,71151.0,0.004]
[1717773679003,0.268544,71152.0,71151.0,0.004]
[1717773679209,0.268544,71152.0,71151.0,0.1647]
[1717773679422,0.268544,71152.0,71151.0,0.25795058]
[1717773679639,0.268544,71152.0,71151.0,0.02095058]
[1717773679640,0.69405093,71152.0,71151.0,0.02095058]
[1717773679811,1.24495093,71152.0,71151.0,0.004]
[1717773680250,1.26495093,71152.0,71151.0,0.004]
[1717773680453,0.949632,71152.0,71151.0,0.004]
[1717773680655,1.2274248,71152.0,71151.0,0.004]
[1717773681015,1.5065128,71152.0,71151.0,0.004]
[1717773681238,1.5265128,71152.0,71151.0,0.004]
[1717773681451,1.5185128,71152.0,71151.0,0.004]
[1717773681668,1.4945128,71152.0,71151.0,0.004]
[1717773682123,1.5085128,71152.0,71151.0,0.004]
[1717773682545,1.4945128,71152.0,71151.0,0.004]
[1717773682828,1.5285128,71152.0,71151.0,0.004]
[1717773683043,1.5425128,71152.0,71151.0,0.004]
[1717773683695,1.68693173,71152.0,71151.0,0.004]
[1717773684449,1.82383173,71152.0,71151.0,0.004]
[1717773684855,2.27552093,71152.0,71151.0,0.004]
[1717773685057,2.26152093,71152.0,71151.0,0.004]
[1717773685225,1.82383173,71152.0,71151.0,0.02101582]
[1717773685426,2.02383173,71152.0,71151.0,0.02101582]
[1717773685647,3.30983173,71152.0,71151.0,0.02108161]
[1717773685851,3.76152093,71152.0,71151.0,0.02108161]
[1717773686215,3.77552093,71152.0,71151.0,0.02108161]
[1717773687592,2.12462093,71152.0,71151.0,0.02108161]
[1717773687797,1.83783173,71152.0,71151.0,0.02108161]
[1717773688606,2.27552093,71152.0,71151.0,0.02108161]
[1717773688974,1.83783173,71152.0,71151.0,0.02108161]
[1717773689708,2.27552093,71152.0,71151.0,0.02108161]
[1717773690896,1.6934128,71152.0,71151.0,0.02108161]
[1717773692115,2.111102,71152.0,71151.0,0.02108161]
[1717773692314,1.6734128,71152.0,71151.0,0.02108161]
[1717773692673,1.6934128,71152.0,71151.0,0.02108161]
[1717773692871,1.6734128,71152.0,71151.0,0.02108161]
[1717773693495,1.6934128,71152.0,71151.0,0.02108161]
[1717773694184,1.9545008,71152.0,71151.0,0.02108161]
[1717773694413,1.9745008,71152.0,71151.0,0.02108161]
[1717773695044,1.9545008,71152.0,71151.0,0.02108161]
[1717773695257,1.8036008,71152.0,71151.0,0.02108161]
[1717773695832,1.4036008,71152.0,71151.0,0.02108161]
[1717773696071,1.1225128,71152.0,71151.0,0.02108161]
[1717773698514,1.18488755,71152.0,71151.0,0.02108161]
[1717773699040,1.33578755,71152.0,71151.0,0.02108161]
[1717773701674,1.33578755,71152.0,71151.0,0.02133161]
[1717773702263,1.2734128,71152.0,71151.0,0.02133161]
[1717773702463,1.33273868,71152.0,71151.0,0.02133161]
[1717773705962,1.38901268,71152.0,71151.0,0.02133161]
[1717773708098,1.40901268,71152.0,71151.0,0.02133161]
[1717773708508,1.38901268,71152.0,71151.0,0.02133161]
[1717773708909,1.80901268,71152.0,71151.0,0.02133161]
[1717773709133,0.644538,71151.0,71150.0,1.0]
[1717773709336,0.91208517,71151.0,71150.0,0.20043603]
[1717773709509,3.12427082,71151.0,71150.0,0.20043603]
[1717773709731,3.33561628,71151.0,71150.0,0.20043603]
[1717773709919,3.61670828,71151.0,71150.0,0.18316903]
[1717773710123,3.71670828,71151.0,71150.0,0.14816903]
[1717773710534,3.71670828,71151.0,71150.0,0.13316903]
[1717773710741,6.49125128,71151.0,71150.0,0.13316903]
[1717773711185,6.49125128,71151.0,71142.0,0.00028112]
[1717773711186,0.51,71147.0,71146.0,3e-08]
[1717773711391,1.001123,71143.0,71142.0,0.00028112]
[1717773711593,0.74169,71142.0,71141.0,0.00117887]
[1717773711798,3.46267735,71142.0,71141.0,0.00117887]
[1717773712053,3.46267735,71142.0,71109.0,0.09222824]
[1717773712054,0.801163,71133.0,71119.0,0.1592]
[1717773712246,1.64423086,71133.0,71132.0,0.01284532]
[1717773712418,1.74423086,71133.0,71132.0,0.01284532]
[1717773712619,1.62083086,71133.0,71132.0,0.01284532]
[1717773713023,0.02,71132.0,71131.0,0.00199284]
[1717773713282,0.560603,71122.0,71114.0,0.1657]
[1717773713482,1.30367086,71122.0,71114.0,0.1657]
[1717773713724,3.36608286,71122.0,71114.0,0.1657]
[1717773713838,3.51608286,71122.0,71114.0,0.1657]
[1717773714644,3.53008286,71122.0,71114.0,0.1657]
[1717773715043,3.51608286,71122.0,71109.0,0.1591]
[1717773715455,3.53008286,71122.0,71109.0,0.1591]
[1717773715912,3.51608286,71122.0,71109.0,0.1591]
[1717773716119,3.51008286,71122.0,71109.0,0.1591]
[1717773716445,3.53008286,71122.0,71109.0,0.1591]
[1717773716656,3.47412673,71122.0,71109.0,0.1591]
[1717773716813,3.59356547,71122.0,71104.0,0.160204]
[1717773717227,3.53672673,71122.0,71104.0,0.160204]
[1717773717386,3.59357612,71122.0,71104.0,0.160204]
[1717773717581,3.60757612,71122.0,71104.0,0.160204]
[1717773718192,3.55072673,71122.0,71104.0,0.160204]
[1717773718618,3.56198879,71122.0,71104.0,0.160204]
[1717773719041,3.54798879,71122.0,71104.0,0.160204]
[1717773719247,2.04798879,71122.0,71104.0,0.160204]
[1717773719733,2.06198879,71122.0,71104.0,0.160204]
[1717773719954,1.98828879,71122.0,71104.0,0.160204]
[1717773720618,0.99176386,71122.0,71119.0,0.1505]
[1717773720872,0.99176386,71122.0,71109.0,0.07222824]
[1717773720873,0.61055786,71122.0,71121.0,0.262785]
[1717773721322,0.44395786,71122.0,71121.0,0.262785]
[1717773721658,0.44395786,71122.0,71121.0,0.40720393]
[1717773721854,0.44395786,71122.0,71121.0,0.54631893]
[1717773721855,0.014,71122.0,71121.0,0.54631893]
[1717773722062,0.71447445,71148.0,71121.0,0.54631893]
[1717773722063,0.140579,71135.0,71134.0,0.2589]
[1717773722171,0.71447445,71148.0,71137.0,0.02]
[1717773722172,0.140569,71140.0,71137.0,0.02]
[1717773722377,0.4,71151.0,71142.0,0.1617]
[1717773722378,0.14056,71144.0,71142.0,0.1617]
[1717773722694,0.14056,71144.0,71143.0,0.08664501]
[1717773722893,0.4,71151.0,71144.0,0.02]
[1717773723297,0.056274,71152.0,71145.0,0.01163703]
[1717773723496,0.140554,71147.0,71145.0,0.01163703]
[1717773723721,0.140554,71147.0,71146.0,0.1545]
[1717773724124,0.07287781,71152.0,71146.0,0.18613304]
[1717773724322,0.140547,71151.0,71146.0,0.18613304]
[1717773724528,0.140548,71150.0,71146.0,0.18613304]
[1717773725086,0.140548,71150.0,71149.0,0.02]
[1717773725291,0.056274,71152.0,71151.0,0.02]
[1717773725503,0.056274,71152.0,71151.0,0.32971893]
[1717773725665,0.00086,71161.0,71160.0,0.1853]
[1717773725918,0.00086,71161.0,71160.0,0.32971893]
[1717773726115,0.00086,71161.0,71160.0,0.34109113]
[1717773727741,0.00086,71161.0,71160.0,0.61609113]
[1717773728167,0.00086,71161.0,71160.0,0.75661913]
[1717773728341,0.00086,71161.0,71160.0,1.00797104]
[1717773728541,0.004,71169.0,71168.0,0.2514]
[1717773728892,0.004,71169.0,71168.0,0.39581893]
[1717773729025,0.004,71169.0,71168.0,0.40776115]
[1717773729371,0.004,71169.0,71168.0,0.54827315]
[1717773729584,0.004,71169.0,71168.0,0.64819046]
[1717773730288,0.005,71169.0,71168.0,0.65719046]
[1717773730612,0.004,71169.0,71168.0,0.64819046]
[1717773731029,0.004,71169.0,71168.0,0.38776115]
[1717773731234,0.004,71169.0,71168.0,0.24334222]
[1717773732503,0.005,71169.0,71168.0,0.25234222]
[1717773732877,0.005,71169.0,71168.0,0.25334222]
[1717773733376,0.005,71169.0,71168.0,0.25234222]
[1717773733579,0.005,71169.0,71168.0,0.27234222]
[1717773733811,0.006,71169.0,71168.0,0.27834222]
[1717773734007,0.004,71169.0,71168.0,0.26334222]
[1717773734431,0.00486,71169.0,71168.0,0.26434222]
[1717773734909,0.00486,71169.0,71168.0,0.26534222]
[1717773739285,0.00486,71169.0,71168.0,0.40976115]
[1717773739911,0.00486,71169.0,71168.0,0.38976115]
[1717773740161,0.00486,71169.0,71168.0,0.24534222]
[1717773740549,0.00486,71169.0,71168.0,0.66066115]
[1717773740792,0.00486,71169.0,71168.0,0.93713093]
[1717773741217,0.00486,71169.0,71168.0,0.94850343]
[1717773741639,0.00486,71169.0,71168.0,0.94750343]
[1717773741844,0.00486,71169.0,71168.0,1.14750343]
[1717773741978,0.00486,71169.0,71168.0,1.26225377]
[1717773742602,0.00486,71169.0,71168.0,1.36742564]
[1717773742817,0.00486,71169.0,71168.0,1.47068421]
[1717773743009,0.00486,71169.0,71168.0,1.36642564]
[1717773743266,0.00586,71169.0,71168.0,1.37542564]
[1717773743468,0.00686,71169.0,71168.0,1.48868421]
[1717773743696,0.00586,71169.0,71168.0,1.47868421]
[1717773743978,0.00486,71169.0,71168.0,1.46968421]
[1717773744137,0.00586,71169.0,71168.0,1.37642564]
[1717773744334,0.00686,71169.0,71168.0,1.28868421]
[1717773744542,0.00586,71169.0,71168.0,1.27025377]
[1717773744938,0.00586,71169.0,71168.0,1.27125377]
[1717773745748,0.00586,71169.0,71168.0,1.07125377]
[1717773745946,0.00586,71169.0,71168.0,0.70860343]
[1717773746939,0.00486,71169.0,71168.0,0.69860343]
[1717773747362,0.00686,71169.0,71168.0,0.71760343]
[1717773747654,0.00586,71169.0,71168.0,0.70760343]
[1717773748261,0.00686,71169.0,71168.0,0.71760343]
[1717773749164,0.00686,71169.0,71168.0,0.56670343]
[1717773750777,0.00686,71169.0,71168.0,1.26575818]
[1717773751171,0.00686,71169.0,71168.0,0.99352994]
[1717773751887,0.00686,71169.0,71168.0,0.71250494]
[1717773753511,0.00686,71169.0,71168.0,0.91250494]
[1717773754062,0.00686,71169.0,71168.0,0.71250494]
[1717773754404,0.00686,71169.0,71168.0,0.91250494]
[1717773754742,0.00686,71169.0,71168.0,0.71250494]
[1717773758531,0.00686,71169.0,71168.0,0.91250494]
[1717773761298,0.00686,71169.0,71168.0,0.71250494]
[1717773762585,0.00486,71169.0,71168.0,0.69350494]
[1717773763217,0.00486,71169.0,71168.0,0.70350494]
[1717773763218,0.00586,71169.0,71168.0,0.70350494]
[1717773763553,0.00486,71169.0,71168.0,0.54080494]
[1717773763770,0.00486,71169.0,71168.0,0.46210494]
[1717773764615,0.00586,71169.0,71168.0,0.47110494]
[1717773765224,0.00586,71169.0,71168.0,0.47210494]
[1717773765690,0.00586,71169.0,71168.0,0.47110494]
[1717773765857,0.00686,71169.0,71168.0,0.48110494]
[1717773768359,0.00686,71169.0,71168.0,0.52291189]
[1717773768974,0.00686,71169.0,71168.0,0.48110494]
[1717773769143,0.00686,71169.0,71168.0,0.68111417]
[1717773769346,0.00686,71169.0,71168.0,0.9517851]
[1717773769537,0.00686,71169.0,71168.0,1.03578266]
[1717773769738,0.00686,71169.0,71168.0,0.68111417]
[1717773770703,0.00686,71169.0,71168.0,0.75334241]
[1717773771143,0.00686,71169.0,71168.0,0.98348982]
[1717773771370,0.00686,71169.0,71168.0,1.15951787]
[1717773771600,0.00686,71169.0,71168.0,1.27234046]
[1717773771808,0.00686,71169.0,71168.0,1.15951787]
[1717773771987,0.00686,71169.0,71168.0,1.1806128]
[1717773772215,0.00686,71169.0,71168.0,1.28580766]
[1717773773309,0.00686,71169.0,71168.0,0.96213917]
[1717773773454,0.00686,71169.0,71168.0,1.10725704]
[1717773773654,0.00686,71169.0,71168.0,1.2124519]
[1717773773858,0.00686,71169.0,71168.0,1.10725704]
[1717773774112,0.00686,71169.0,71168.0,0.90725704]
[1717773774311,0.00686,71169.0,71168.0,0.48111417]
[1717773774895,0.00686,71169.0,71168.0,0.54425853]
[1717773775300,0.00686,71169.0,71168.0,0.48111417]
[1717773777423,0.00686,71169.0,71168.0,0.46111417]
[1717773777603,0.00686,71169.0,71168.0,0.48111417]
[1717773778150,0.00686,71169.0,71168.0,0.48111822]
[1717773778590,0.00686,71169.0,71168.0,0.33530343]
[1717773778937,0.00686,71169.0,71168.0,0.48111822]
[1717773780224,0.00686,71169.0,71168.0,0.17618729]
[1717773780429,0.14737,71169.0,71168.0,0.17618729]
[1717773780858,0.14737,71169.0,71168.0,0.16481479]
[1717773781067,0.14737,71169.0,71168.0,0.019]
[1717773781266,0.20104044,71169.0,71168.0,0.019]
[1717773781780,0.72548037,71169.0,71168.0,0.01]
[1717773781909,0.74548052,71169.0,71168.0,0.01]
[1717773782082,0.809082,71169.0,71168.0,0.019]
[1717773782291,0.74648052,71169.0,71168.0,0.019]
[1717773782539,0.82994917,71169.0,71168.0,0.019]
[1717773782713,0.74548052,71169.0,71168.0,0.01]
[1717773782934,1.02650152,71169.0,71168.0,0.01]
[1717773783114,1.02650152,71169.0,71168.0,0.011]
[1717773783115,1.03250152,71169.0,71168.0,0.011]
[1717773783310,1.11609198,71169.0,71168.0,0.011]
[1717773783513,1.09609198,71169.0,71168.0,0.011]
[1717773783691,0.66965205,71169.0,71168.0,0.001]
[1717773783892,0.58606159,71169.0,71168.0,0.001]
[1717773784091,0.64875657,71169.0,71168.0,0.006]
[1717773784366,0.58606159,71169.0,71168.0,0.006]
[1717773784504,0.58606159,71169.0,71168.0,0.001]
[1717773784706,0.140524,71162.0,71161.0,0.000946]
[1717773785332,0.140517,71166.0,71165.0,0.02]
[1717773785744,0.14900791,71169.0,71161.0,0.000946]
[1717773785745,0.145371,71169.0,71168.0,0.02]
[1717773785947,0.00486,71169.0,71168.0,0.02]
[1717773786179,0.00486,71169.0,71168.0,0.0100361]
[1717773786697,0.00486,71169.0,71166.0,0.02]
[1717773786900,0.00486,71169.0,71168.0,0.0100361]
[1717773787328,0.00486,71169.0,71167.0,0.02]
[1717773787775,0.00486,71169.0,71166.0,0.02]
[1717773788155,0.00486,71169.0,71166.0,0.024]
[1717773788328,0.00486,71169.0,71166.0,0.02]
[1717773788541,0.00486,71169.0,71168.0,0.001]
[1717773788542,0.01786,71169.0,71168.0,0.001]
[1717773789109,0.00486,71169.0,71167.0,0.02]
[1717773789542,0.07222824,71168.0,71161.0,0.000946]
[1717773789736,0.441572,71162.0,71161.0,0.000946]
[1717773789936,0.96703893,71162.0,71161.0,0.000946]
[1717773790143,0.96703893,71162.0,71133.0,0.43336945]
[1717773790144,0.1,71159.0,71133.0,0.43336945]
[1717773790344,0.140565,71142.0,71133.0,0.43336945]
[1717773790602,0.140565,71142.0,71134.0,0.02]
[1717773790835,0.140565,71142.0,71135.0,0.02]
[1717773791006,0.140565,71142.0,71135.0,0.16441893]
[1717773791713,0.140565,71142.0,71135.0,0.14441893]
[1717773791912,0.281097,71150.0,71134.0,0.02]
[1717773792245,0.281097,71150.0,71131.0,0.000946]
[1717773792246,0.281098,71150.0,71131.0,0.000946]
[1717773792429,0.00702809,71149.0,71132.0,0.14441893]
[1717773792638,0.281098,71150.0,71131.0,0.14536493]
[1717773792848,0.14057,71139.0,71132.0,0.02]
[1717773792999,0.281098,71150.0,71134.0,0.09222824]
[1717773793211,0.281098,71150.0,71135.0,0.14441893]
[1717773793391,0.282098,71150.0,71135.0,0.14441893]
[1717773794021,0.140568,71140.0,71135.0,0.15141893]
[1717773794538,0.140568,71140.0,71135.0,0.17141893]
[1717773794752,0.140568,71140.0,71135.0,0.15141893]
[1717773794949,0.140568,71140.0,71137.0,0.02]
[1717773795432,0.140568,71140.0,71136.0,0.02]
[1717773795642,0.140568,71140.0,71136.0,0.14441893]
[1717773796050,0.140568,71140.0,71136.0,0.16441893]
[1717773796200,0.140568,71140.0,71136.0,0.14441893]
[1717773796407,0.282098,71150.0,71138.0,0.07222824]
[1717773796408,0.140561,71144.0,71138.0,0.07222824]
[1717773796610,0.281098,71150.0,71138.0,0.07222824]
[1717773796611,0.281098,71150.0,71138.0,0.14441893]
[1717773796813,0.001,71140.0,71138.0,0.14441893]
[1717773797659,0.001,71140.0,71139.0,0.02]
[1717773799112,0.140567,71141.0,71140.0,0.02]
[1717773799265,0.140567,71141.0,71138.0,0.14441893]
[1717773799469,0.140567,71141.0,71138.0,0.14741893]
[1717773799902,0.140567,71141.0,71139.0,0.001]
[1717773800412,0.140567,71141.0,71139.0,0.003]
[1717773800644,0.140567,71141.0,71139.0,0.021]
[1717773800881,0.281098,71150.0,71142.0,0.02]
[1717773801078,0.281098,71150.0,71142.0,0.16441893]
[1717773801285,0.140549,71150.0,71148.0,0.02]
[1717773801715,0.140549,71150.0,71149.0,0.02]
[1717773802446,0.140549,71150.0,71148.0,0.02]
[1717773802681,0.140549,71150.0,71143.0,0.14441893]
[1717773802883,0.14055,71149.0,71148.0,0.001]
[1717773804064,0.84716893,71149.0,71148.0,0.002]
[1717773804235,0.96716893,71149.0,71148.0,0.001]
[1717773804717,1.0247613,71149.0,71148.0,0.002]
[1717773804923,0.97716893,71149.0,71148.0,0.002]
[1717773805467,0.97716893,71149.0,71148.0,0.001]
[1717773806429,0.421702,71140.0,71139.0,0.000946]
[1717773806623,0.521702,71140.0,71139.0,0.000946]
[1717773806835,0.597902,71140.0,71139.0,0.000946]
[1717773807336,0.760902,71140.0,71139.0,0.000946]
[1717773807965,0.771902,71140.0,71139.0,0.000946]
[1717773808992,0.782902,71140.0,71139.0,0.000946]
[1717773809449,0.771902,71140.0,71139.0,0.000946]
[1717773809654,0.760902,71140.0,71139.0,0.000946]
[1717773809858,0.771902,71140.0,71139.0,0.000946]
[1717773810075,0.783902,71140.0,71139.0,0.000946]
[1717773810677,0.772902,71140.0,71139.0,0.000946]
[1717773811021,0.760902,71140.0,71139.0,0.000946]
[1717773811403,0.772902,71140.0,71139.0,0.000946]
[1717773811625,0.760902,71140.0,71139.0,0.000946]
[1717773811743,0.521702,71140.0,71139.0,0.000946]
[1717773811949,0.240567,71140.0,71139.0,0.000946]
[1717773812637,0.251567,71140.0,71139.0,0.000946]
[1717773813002,0.240567,71140.0,71139.0,0.000946]
[1717773813409,0.251567,71140.0,71139.0,0.000946]
[1717773813992,0.263567,71140.0,71139.0,0.000946]
[1717773814753,0.882117,71140.0,71139.0,0.000946]
[1717773815152,1.125117,71140.0,71139.0,0.000946]
[1717773817634,1.426252,71140.0,71139.0,0.000946]
[1717773817897,1.145117,71140.0,71139.0,0.000946]
[1717773818130,1.57067093,71140.0,71139.0,0.000946]
[1717773818349,1.61822019,71140.0,71139.0,0.000946]